bitfinex-derivatives/quotes_SOLF0:USTF0_20240815
["timestamp","ask_amount","ask_price","bid_price","bid_amount"]
[1723749283215,3.5978,138.96,138.88,31.05]
[1723749283432,3.5978,138.96,138.88,34.67281824]
[1723749283615,34.7242542,139.0,138.88,34.67281824]
[1723749283824,3.5976,138.96,138.88,34.67281824]
[1723749284017,34.7242542,139.0,138.88,34.67281824]
[1723749284221,31.05,138.98,138.88,3.62281824]
[1723749284412,31.05,138.98,138.87,31.05]
[1723749284619,0.05153749,138.95,138.93,0.03923192]
[1723749284823,3.5981,138.94,138.93,0.03923192]
[1723749285525,31.05,138.94,138.79,35.95712829]
[1723749285714,31.05,138.91,138.8,1.3656]
[1723749285914,3.5992,138.9,138.8,1.3656]
[1723749286422,3.5992,138.9,138.83,3.6008]
[1723749286621,0.046927,138.86,138.8,1.3656]
[1723749287213,0.046927,138.86,138.83,31.05]
[1723749287422,0.046927,138.86,138.81,31.05]
[1723749287621,229.0,139.08,138.85,31.05]
[1723749287927,1.3521,139.04,138.94,31.05]
[1723749288121,1.3521,139.04,138.96,31.05]
[1723749288326,1.0,139.08,139.0,31.05]
[1723749288523,6.21425956,139.13,139.02,31.05]
[1723749288825,59.83,139.18,139.01,8.32]
[1723749288826,28.78,139.18,139.12,31.05]
[1723749289027,28.78,139.18,139.11,8.32]
[1723749289217,0.04945014,139.16,139.09,39.37]
[1723749289525,0.04945014,139.16,139.11,31.05]
[1723749289730,0.04945014,139.16,139.13,0.04692701]
[1723749289919,0.04945014,139.16,139.14,3.5928]
[1723749290118,0.04945014,139.16,139.13,0.04692701]
[1723749290920,0.04945014,139.16,139.13,31.09692701]
[1723749291232,0.04945014,139.16,139.13,0.04692701]
[1723749291417,0.04945014,139.16,139.13,31.09692701]
[1723749291624,64.35358906,139.22,139.13,31.09692701]
[1723749292027,38.61215343,139.19,139.13,31.09692701]
[1723749292231,64.35358906,139.22,139.13,31.09692701]
[1723749292232,31.05,139.25,139.13,31.09692701]
[1723749292530,5.26502085,139.24,139.18,34.6417]
[1723749292730,31.05,139.3,139.18,11.88905217]
[1723749292917,5.26619997,139.29,139.18,11.88905217]
[1723749293120,5.26619997,139.28,139.18,11.88905217]
[1723749293328,0.04780722,139.22,139.2,0.04557867]
[1723749293523,31.05,139.33,139.2,0.04557867]
[1723749293831,5.26629612,139.32,139.2,0.04557867]
[1723749294135,5.26629612,139.31,139.19,31.05]
[1723749294428,5.26532897,139.3,139.21,3.5911]
[1723749294629,5.26532897,139.29,139.21,3.5911]
[1723749294944,0.05341494,139.27,139.24,0.0488595]
[1723749295228,35.0129,139.35,139.22,3.5908]
[1723749295527,0.04776304,139.27,139.24,31.10391692]
[1723749295728,3.5074763,139.38,139.26,31.05]
[1723749295935,3.5882,139.33,139.29,31.05]
[1723749296134,5.26733705,139.32,139.29,31.05]
[1723749296432,3.5074763,139.38,139.3,3.54301777]
[1723749296629,5.2691994,139.37,139.29,31.05]
[1723749296933,3.5877,139.35,139.3,3.54840284]
[1723749297134,5.31680726,139.34,139.32,0.05121344]
[1723749297333,0.04760786,139.34,139.33,8.34]
[1723749297636,0.04760786,139.34,139.32,0.05121344]
[1723749297637,5.31681691,139.34,139.32,0.05121344]
[1723749297938,8.85720905,139.33,139.32,0.05121344]
[1723749298136,8.85622793,139.33,139.32,0.05121344]
[1723749299231,39.90622793,139.33,139.32,0.05121344]
[1723749299425,5.26822793,139.33,139.22,8.34]
[1723749299634,31.05,139.38,139.24,31.05]
[1723749299830,3.5875,139.35,139.28,31.05]
[1723749300030,31.05,139.41,139.28,38.21191428]
[1723749300231,5.272289,139.4,139.28,38.21191428]
[1723749300430,5.272289,139.39,139.22,8.34]
[1723749300733,5.272289,139.39,139.21,31.05]
[1723749300734,31.05,139.33,139.21,31.05]
[1723749301046,32.05,139.39,139.17,3.592]
[1723749301047,31.05,139.29,139.17,3.592]
[1723749301334,3.5912,139.21,139.14,32.3529]
[1723749301537,31.05,139.27,139.14,31.05]
[1723749301734,31.05,139.27,139.16,31.05]
[1723749302037,1.3144,139.31,139.22,0.05231365]
[1723749302038,5.26527892,139.26,139.22,0.05231365]
[1723749302331,1.3144,139.31,139.22,0.05231365]
[1723749302533,0.05367016,139.23,139.22,0.05231365]
[1723749302734,0.05367016,139.23,139.17,8.34]
[1723749302935,31.05,139.27,139.16,31.05]
[1723749303132,5.26886812,139.26,139.21,0.04764006]
[1723749303329,31.05,139.27,139.21,0.04764006]
[1723749303530,5.26958134,139.26,139.21,0.04764006]
[1723749303742,31.09559018,139.25,139.21,0.04764006]
[1723749303935,3.5906,139.23,139.21,0.04764006]
[1723749304135,0.04559018,139.25,139.21,31.09764006]
[1723749304336,0.04559018,139.25,139.24,31.05]
[1723749304535,0.04559018,139.25,139.24,34.6404]
[1723749304941,27.79632358,139.36,139.24,31.05]
[1723749305143,12.1863,139.38,139.26,31.05]
[1723749305144,5.26394011,139.35,139.26,31.05]
[1723749305332,5.26394011,139.34,139.29,31.05]
[1723749305536,3.8463,139.38,139.29,31.05]
[1723749305839,5.26439304,139.37,139.24,43.00134655]
[1723749306049,5.26439304,139.36,139.26,31.05]
[1723749306346,5.31080702,139.35,139.32,0.04893067]
[1723749306538,0.04641398,139.35,139.32,0.04893067]
[1723749307641,3.588,139.33,139.32,0.04893067]
[1723749308341,3.5879,139.34,139.32,0.04893067]
[1723749308541,0.04641398,139.35,139.32,0.04893067]
[1723749308936,0.04641398,139.35,139.32,3.59078144]
[1723749309136,31.05,139.43,139.32,0.04893067]
[1723749309334,3.7986,139.44,139.32,0.04893067]
[1723749309335,31.05,139.4,139.32,0.04893067]
[1723749309545,5.27800752,139.39,139.31,8.32]
[1723749309749,5.27800752,139.39,139.31,42.96424289]
[1723749310043,3.7986,139.44,139.33,31.05]
[1723749310343,5.97700139,139.43,139.33,31.05]
[1723749310541,0.0479493,139.4,139.37,0.05129971]
[1723749311136,3.5867,139.38,139.37,0.05129971]
[1723749311843,0.0479493,139.4,139.37,0.05129971]
[1723749312351,3.5867,139.38,139.37,0.05129971]
[1723749312943,31.74618597,139.38,139.27,8.32]
[1723749313345,31.05,139.41,139.29,3.589]
[1723749313545,31.05,139.43,139.31,31.05]
[1723749313742,5.98149208,139.42,139.33,31.05]
[1723749314043,3.5869,139.38,139.33,31.05]
[1723749314343,3.5869,139.38,139.36,0.05336345]
[1723749314344,0.04733926,139.38,139.36,0.05336345]
[1723749315145,31.05,139.37,139.24,3.61134655]
[1723749315444,31.05,139.37,139.26,31.05]
[1723749315649,31.05,139.39,139.28,31.05]
[1723749316049,3.5877,139.35,139.29,3.589]
[1723749316239,31.05,139.42,139.3,31.05]
[1723749316546,34.8486,139.44,139.32,31.05]
[1723749316849,0.04825389,139.33,139.32,31.05]
[1723749317043,3.5872,139.37,139.32,31.05]
[1723749317242,34.8486,139.44,139.32,31.05]
[1723749317448,34.8486,139.44,139.33,3.57953003]
[1723749317639,3.5869,139.38,139.33,3.57953003]
[1723749318147,3.5864,139.4,139.35,31.05]
[1723749318347,0.04764474,139.37,139.34,0.04941875]
[1723749318746,3.5869,139.38,139.32,38.15806091]
[1723749319047,0.04627223,139.37,139.34,0.04769097]
[1723749321639,3.5875,139.35,139.34,0.04769097]
[1723749321844,3.5875,139.35,139.19,227.0]
[1723749321845,31.05,139.35,139.21,31.05]
[1723749322038,2.6273,139.34,139.23,3.5904]
[1723749322239,6.19191444,139.34,139.24,3.61519415]
[1723749322647,6.19191444,139.34,139.23,3.5904]
[1723749322648,31.05,139.33,139.22,4.924]
[1723749323039,31.05,139.33,139.23,3.52292014]
[1723749323248,31.05,139.33,139.23,7.11352014]
[1723749323450,31.05,139.33,139.22,1.3331]
[1723749323646,31.05,139.33,139.23,3.5904]
[1723749323647,3.5892,139.29,139.23,3.5904]
[1723749323840,0.05239352,139.29,139.26,0.05054206]
[1723749325057,0.05239352,139.29,139.26,31.10054206]
[1723749326054,3.5882,139.33,139.28,31.05]
[1723749326250,2.6273,139.38,139.28,31.05]
[1723749326459,2.6273,139.38,139.26,31.05]
[1723749326642,34.60959234,139.41,139.28,31.05]
[1723749326957,31.05,139.41,139.31,31.05]
[1723749327157,3.5878,139.34,139.33,0.0483885]
[1723749328143,0.04995166,139.36,139.33,0.0483885]
[1723749328545,3.5877,139.35,139.33,0.0483885]
[1723749328852,0.04995166,139.36,139.33,0.0483885]
[1723749329051,3.5877,139.35,139.33,0.0483885]
[1723749329255,0.04995166,139.36,139.33,0.0483885]
[1723749329655,3.5878,139.34,139.33,0.0483885]
[1723749331357,0.04995166,139.36,139.33,0.0483885]
[1723749331955,3.5878,139.34,139.33,0.0483885]
[1723749333159,31.09995166,139.36,139.26,8.48]
[1723749333359,31.05,139.36,139.26,8.48]
[1723749333551,31.05,139.38,139.27,31.05]
[1723749333752,31.05,139.41,139.29,31.05]
[1723749333952,34.67885053,139.41,139.29,31.05]
[1723749334157,3.5877,139.35,139.29,31.05]
[1723749334458,3.5877,139.35,139.34,0.05307585]
[1723749334763,31.05,139.38,139.33,0.04929335]
[1723749334764,3.5879,139.34,139.33,0.04929335]
[1723749334954,0.05343229,139.36,139.33,0.04929335]
[1723749335152,0.05343229,139.36,139.27,31.05]
[1723749335355,3.5878,139.35,139.33,0.04866597]
[1723749335553,3.5878,139.35,139.29,3.589]
[1723749335554,31.05,139.38,139.27,31.05]
[1723749335758,0.05133823,139.33,139.29,31.05]
[1723749336054,0.05133823,139.33,139.32,3.5883]
[1723749336254,34.72210493,139.41,139.31,0.05270696]
[1723749336459,0.04889606,139.34,139.31,0.05270696]
[1723749336656,31.05,139.36,139.25,8.48]
[1723749336958,3.5885,139.32,139.31,0.05259448]
[1723749337349,31.05,139.33,139.2,31.05]
[1723749337552,31.05,139.31,139.21,8.48]
[1723749337754,32.3391,139.34,139.21,8.48]
[1723749337950,1.2891,139.34,139.28,3.5893]
[1723749338161,1.2891,139.34,139.27,34.70416422]
[1723749338361,3.64985845,139.38,139.27,31.05]
[1723749338553,3.64985845,139.38,139.27,34.56279141]
[1723749338554,3.5876,139.35,139.27,34.56279141]
[1723749338859,0.0515322,139.32,139.29,31.09733675]
[1723749339054,0.0515322,139.32,139.31,3.5885]
[1723749339254,1.2891,139.38,139.29,31.05]
[1723749339453,0.05421542,139.33,139.3,0.04989362]
[1723749339753,0.05421542,139.33,139.31,3.5884]
[1723749340065,0.05421542,139.33,139.3,0.04989362]
[1723749340066,0.05421542,139.33,139.32,31.05]
[1723749340258,0.05421542,139.33,139.32,34.6383]
[1723749340457,32.3197,139.44,139.32,31.05]
[1723749340659,32.3197,139.44,139.34,31.05]
[1723749341161,3.5864,139.4,139.36,3.5871]
[1723749341556,32.3197,139.44,139.31,31.05]
[1723749341758,1.2827,139.46,139.38,31.05]
[1723749342058,228.0,139.54,139.43,31.05]
[1723749342059,229.2697,139.54,139.43,31.05]
[1723749342265,3.50079815,139.53,139.43,31.05]
[1723749342451,3.50079815,139.53,139.41,31.05]
[1723749342452,31.05,139.53,139.41,31.05]
[1723749342664,6.06661533,139.52,139.41,31.05]
[1723749342962,2.5318,139.52,139.43,31.05]
[1723749343172,1.2697,139.54,139.46,31.05]
[1723749343459,0.04593535,139.48,139.46,31.05]
[1723749343660,1.2697,139.54,139.46,31.05]
[1723749343661,1.2697,139.54,139.47,3.62443138]
[1723749343854,34.61385093,139.57,139.49,3.5837]
[1723749344054,1.3574,139.59,139.48,34.72103172]
[1723749344255,1.2715,139.6,139.52,31.05]
[1723749344455,1.2715,139.6,139.52,39.53]
[1723749344653,0.05165994,139.54,139.52,39.53]
[1723749344858,3.5809,139.61,139.56,3.5821]
[1723749345059,3.56241707,139.67,139.56,31.05]
[1723749345464,3.5805,139.63,139.58,3.5816]
[1723749345760,31.05,139.73,139.61,31.05]
[1723749345967,0.69509789,139.72,139.61,34.6308]
[1723749346259,0.69509789,139.72,139.62,31.05]
[1723749346968,31.05,139.76,139.64,31.05]
[1723749347166,0.69471018,139.75,139.66,0.04701401]
[1723749347364,31.05,139.71,139.66,0.04701401]
[1723749347553,0.05456237,139.68,139.66,0.04701401]
[1723749347754,31.10456237,139.68,139.57,31.05]
[1723749348259,1.3298,139.69,139.59,31.05]
[1723749348658,31.05,139.73,139.62,31.05]
[1723749348858,31.05,139.75,139.64,31.05]
[1723749349169,31.05,139.75,139.66,0.053407]
[1723749349170,0.05261798,139.69,139.66,0.053407]
[1723749350064,32.3798,139.77,139.63,39.51]
[1723749350267,0.04878406,139.69,139.66,0.05406811]
[1723749350769,3.5788,139.7,139.63,43.0903]
[1723749350971,32.3798,139.77,139.61,31.05]
[1723749350972,31.05,139.74,139.61,31.05]
[1723749351160,0.04921878,139.69,139.66,0.04606325]
[1723749351459,0.04921878,139.69,139.45,31.05]
[1723749351460,0.04921878,139.69,139.59,31.05]
[1723749351661,0.69478272,139.71,139.59,31.05]
[1723749351860,0.69478272,139.71,139.53,9.7299]
[1723749351861,31.09772634,139.69,139.66,0.05495792]
[1723749352061,1.2637,139.68,139.66,0.05495792]
[1723749352361,1.2637,139.68,139.57,31.05]
[1723749352575,31.05,139.64,139.51,31.05]
[1723749352872,1.2606,139.63,139.51,31.05]
[1723749353065,31.05,139.62,139.49,32.3027]
[1723749353566,2.5024,139.63,139.51,31.05]
[1723749353772,2.5024,139.63,139.54,31.05]
[1723749354066,1.0,139.67,139.61,31.05]
[1723749354368,34.8114,139.75,139.61,31.05]
[1723749354666,0.69483239,139.74,139.61,31.05]
[1723749355063,0.0488653,139.69,139.61,31.05]
[1723749355264,0.0488653,139.69,139.67,0.05285416]
[1723749355468,3.5796,139.66,139.61,34.6308]
[1723749355667,3.5796,139.66,139.61,3.5808]
[1723749355874,3.5796,139.66,139.59,31.05]
[1723749356167,0.04945731,139.65,139.62,0.04953105]
[1723749356672,3.62945731,139.65,139.62,0.04953105]
[1723749356876,0.04945731,139.65,139.62,0.04953105]
[1723749357261,3.5803,139.64,139.62,0.04953105]
[1723749357578,0.04945731,139.65,139.62,0.04953105]
[1723749358565,3.5803,139.63,139.62,0.04953105]
[1723749360676,3.5803,139.63,139.38,31.05]
[1723749360677,39.49,139.63,139.38,31.05]
[1723749360969,40.49,139.62,139.48,31.05]
[1723749361176,3.5817,139.58,139.5,31.05]
[1723749361362,3.5817,139.58,139.52,3.583]
[1723749361763,1.0,139.62,139.53,31.05]
[1723749361967,0.05304791,139.56,139.54,0.04772639]
[1723749362169,2.6177,139.66,139.55,31.05]
[1723749362405,2.6177,139.66,139.45,31.05]
[1723749362406,31.05,139.63,139.51,31.05]
[1723749362574,2.6177,139.66,139.48,39.49]
[1723749362575,31.05,139.61,139.48,39.49]
[1723749362980,31.05,139.58,139.46,1.3484]
[1723749363280,2.6271,139.57,139.46,1.3484]
[1723749363476,0.04979399,139.53,139.51,0.04808601]
[1723749364477,0.04979399,139.53,139.52,34.6331]
[1723749364690,0.04979399,139.53,139.52,31.05]
[1723749365079,3.5831,139.52,139.51,0.04808601]
[1723749365481,0.04979399,139.53,139.41,31.05]
[1723749365781,1.3439,139.52,139.41,31.05]
[1723749366183,3.5854,139.44,139.41,31.05]
[1723749366480,1.3439,139.52,139.41,31.05]
[1723749366676,0.04547656,139.44,139.41,31.09891298]
[1723749366875,0.04547656,139.44,139.41,0.04891298]
[1723749367187,31.05,139.51,139.39,40.866]
[1723749367385,0.05268018,139.44,139.41,0.04631719]
[1723749368283,1.0,139.51,139.41,31.05]
[1723749368488,1.0,139.51,139.43,31.05]
[1723749368891,3.5843,139.48,139.43,31.05]
[1723749369289,1.0,139.51,139.43,34.6354]
[1723749369492,0.05169551,139.44,139.41,0.04593079]
[1723749369685,1.3439,139.52,139.43,31.05]
[1723749369994,1.3439,139.52,139.41,0.04593079]
[1723749369995,1.3439,139.52,139.45,31.05]
[1723749370393,3.5816,139.59,139.5,31.05]
[1723749370587,28.66,139.71,139.52,31.05]
[1723749370588,2.5573,139.63,139.52,31.05]
[1723749370889,0.69569282,139.62,139.53,0.04771312]
[1723749371088,0.04587823,139.56,139.53,0.04771312]
[1723749371292,3.5817,139.58,139.52,34.633]
[1723749371490,1.2348,139.63,139.54,31.05]
[1723749371693,31.05,139.67,139.57,3.5818]
[1723749371896,1.3225,139.69,139.59,31.05]
[1723749371897,2.5573,139.69,139.59,31.05]
[1723749372097,2.5573,139.69,139.53,0.05378248]
[1723749372098,33.6073,139.69,139.56,39.51]
[1723749372398,0.05160469,139.6,139.52,31.05]
[1723749372696,3.5818,139.58,139.53,8.46]
[1723749372997,1.0,139.68,139.53,8.46]
[1723749373196,1.0,139.68,139.55,0.05405975]
[1723749373197,0.05483705,139.57,139.55,0.05405975]
[1723749373589,3.5821,139.56,139.55,0.05405975]
[1723749373900,31.05,139.59,139.47,32.3547]
[1723749374097,31.05,139.56,139.54,0.04541035]
[1723749374298,31.05,139.56,139.47,1.3047]
[1723749374299,3.5834,139.52,139.47,1.3047]
[1723749374499,2.6311,139.6,139.47,32.3547]
[1723749374705,3.5833,139.52,139.47,1.3047]
[1723749374889,31.05,139.58,139.47,1.3047]
[1723749375493,31.05,139.56,139.45,31.05]
[1723749375690,31.05,139.56,139.44,8.46]
[1723749376189,0.05130282,139.54,139.51,0.05203258]
[1723749376598,3.5831,139.52,139.51,0.05203258]
[1723749377400,31.05,139.52,139.27,7.1789]
[1723749377590,0.05130282,139.54,139.39,3.5864]
[1723749377591,31.05,139.48,139.39,3.5864]
[1723749377791,31.05,139.48,139.36,31.05]
[1723749377994,3.5849,139.46,139.36,31.05]
[1723749378198,31.05,139.48,139.36,31.05]
[1723749378396,1.3577,139.51,139.43,31.05]
[1723749378603,1.3577,139.51,139.44,3.585]
[1723749378930,40.8476,139.56,139.43,31.05]
[1723749379197,11.1553,139.56,139.45,31.05]
[1723749379703,0.04613436,139.51,139.48,31.05]
[1723749380693,3.583,139.53,139.49,0.04727414]
[1723749380895,31.05,139.59,139.49,0.04727414]
[1723749381200,0.05151854,139.51,139.49,0.04727414]
[1723749381395,0.05151854,139.51,139.47,3.5844]
[1723749381703,0.05151854,139.51,139.45,31.05]
[1723749381897,3.5835,139.51,139.45,31.05]
[1723749382201,31.05,139.54,139.49,0.05482819]
[1723749382419,3.5837,139.5,139.49,0.05482819]
[1723749382706,31.05,139.51,139.35,31.05]
[1723749382902,31.05,139.47,139.35,31.05]
[1723749383106,3.5856,139.43,139.35,31.05]
[1723749383300,31.05,139.47,139.35,31.05]
[1723749383906,3.5856,139.43,139.38,3.5866]
[1723749384094,3.5856,139.43,139.4,0.04266443]
[1723749384292,2.6356,139.49,139.42,3.5857]
[1723749384700,31.05,139.52,139.4,31.09266443]
[1723749384701,0.04559559,139.43,139.4,31.05]
[1723749384997,32.3897,139.52,139.4,31.05]
[1723749385206,32.3897,139.52,139.44,0.04266443]
[1723749385696,0.04693207,139.49,139.44,0.04266443]
[1723749386126,0.04693207,139.49,139.45,31.05]
[1723749386291,0.04693207,139.49,139.47,31.05]
[1723749386499,0.04693207,139.49,139.48,3.5842]
[1723749387189,0.04693207,139.49,139.47,34.6343]
[1723749387393,31.05,139.59,139.47,31.09266443]
[1723749387898,31.05,139.57,139.45,31.05]
[1723749388900,0.05012239,139.52,139.5,0.05128408]
[1723749389494,31.05,139.57,139.5,0.05128408]
[1723749389699,0.05488024,139.52,139.43,8.26]
[1723749389927,31.05,139.51,139.41,1.2485]
[1723749390202,1.2496,139.51,139.41,1.2485]
[1723749391209,8.26,139.54,139.46,3.5845]
[1723749391210,3.5834,139.52,139.46,3.5845]
[1723749391397,8.26,139.54,139.45,31.05]
[1723749391594,8.26,139.54,139.45,31.08831242]
[1723749391595,0.04627407,139.47,139.45,31.08831242]
[1723749391801,0.04627407,139.47,139.45,0.03831242]
[1723749391999,8.26,139.54,139.43,31.05]
[1723749394402,3.5836,139.51,139.46,3.5847]
[1723749394597,32.4058,139.57,139.45,39.31]
[1723749394998,3.5833,139.52,139.47,3.5844]
[1723749395199,32.4058,139.57,139.45,39.31]
[1723749395404,1.3558,139.57,139.48,31.05]
[1723749395801,0.04980467,139.51,139.48,31.10425448]
[1723749396006,3.5823,139.56,139.51,3.5832]
[1723749396208,3.5823,139.56,139.5,31.05]
[1723749396498,2.6459,139.58,139.5,31.05]
[1723749396705,32.4155,139.62,139.5,31.05]
[1723749396910,0.69567138,139.61,139.52,31.05]
[1723749397112,3.582,139.57,139.52,34.633]
[1723749397404,0.0484835,139.58,139.55,0.05290826]
[1723749397600,3.5821,139.56,139.55,0.05290826]
[1723749397994,3.5821,139.56,139.49,8.26]
[1723749398195,3.5821,139.56,139.51,3.5832]
[1723749398401,3.5819,139.57,139.49,11.90293818]
[1723749398605,31.05,139.6,139.49,11.90293818]
[1723749398807,0.05413058,139.57,139.54,0.05359548]
[1723749399998,3.5824,139.55,139.54,0.05359548]
[1723749400596,3.5824,139.55,139.47,3.5843]
[1723749400597,3.5836,139.51,139.45,8.26]
[1723749400804,31.05,139.55,139.45,11.91762889]
[1723749401005,31.05,139.57,139.46,31.05]
[1723749401205,3.5836,139.51,139.46,31.05]
[1723749401514,31.05,139.55,139.46,31.05]
[1723749401907,0.05449547,139.52,139.49,0.05405367]
[1723749403809,3.5834,139.51,139.49,0.05405367]
[1723749404008,0.05449547,139.52,139.49,0.05405367]
[1723749405110,2.6056,139.6,139.5,31.05]
[1723749405316,2.6056,139.6,139.52,31.05]
[1723749405510,3.5819,139.57,139.52,34.63305269]
[1723749405814,3.5819,139.57,139.52,38.21595269]
[1723749406005,6.1867,139.6,139.52,34.63305269]
[1723749406210,8.26,139.62,139.54,3.5825]
[1723749406418,1.2574,139.63,139.55,0.04657211]
[1723749406419,0.04883026,139.57,139.55,0.04657211]
[1723749406715,3.51746971,139.62,139.55,0.04657211]
[1723749406911,3.62139902,139.67,139.57,31.05]
[1723749407114,0.69517689,139.66,139.57,31.05]
[1723749407313,31.05,139.69,139.55,3.58699483]
[1723749407314,31.05,139.64,139.55,3.58699483]
[1723749407617,0.04684013,139.63,139.52,39.31]
[1723749407818,3.5808,139.61,139.6,0.0530916]
[1723749408111,3.5808,139.61,139.52,42.81266657]
[1723749408319,31.05,139.67,139.52,42.81266657]
[1723749408617,0.04599883,139.62,139.59,0.04537968]
[1723749409216,0.69523279,139.65,139.55,31.05]
[1723749409406,31.10246408,139.62,139.59,0.04776632]
[1723749409610,2.6598,139.61,139.5,40.5883]
[1723749409816,3.5823,139.56,139.5,44.1719]
[1723749410008,31.05,139.6,139.49,3.5341834]
[1723749410309,3.5823,139.56,139.5,3.5835]
[1723749410516,31.05,139.6,139.5,3.5835]
[1723749410717,31.05,139.6,139.52,0.05507267]
[1723749411018,31.05,139.57,139.52,0.05507267]
[1723749411217,31.09848117,139.57,139.52,0.05507267]
[1723749411716,0.04848117,139.57,139.52,0.05507267]
[1723749414121,3.5829,139.53,139.52,0.05507267]
[1723749414616,1.0,139.59,139.52,0.05507267]
[1723749414816,0.04620362,139.54,139.52,0.05507267]
[1723749415011,0.05273708,139.54,139.52,0.05507267]
[1723749415211,0.05273708,139.54,139.52,31.10507267]
[1723749415616,0.05273708,139.54,139.53,3.5828]
[1723749415914,0.05273708,139.54,139.52,31.10507267]
[1723749415915,32.415,139.64,139.52,31.10507267]
[1723749416118,3.581,139.61,139.56,3.582]
[1723749416416,1.3426,139.65,139.57,31.05]
[1723749416618,3.5807,139.62,139.57,34.6317]
[1723749417012,1.3426,139.65,139.57,34.56061507]
[1723749417213,0.04616971,139.61,139.58,3.63202283]
[1723749417420,0.04616971,139.61,139.58,0.05052283]
[1723749417812,3.62716971,139.61,139.58,0.05052283]
[1723749418011,0.04616971,139.61,139.58,0.05052283]
[1723749418216,3.5811,139.6,139.58,0.05052283]
[1723749418520,0.04616971,139.61,139.58,0.05052283]
[1723749418714,3.5811,139.6,139.58,0.05052283]
[1723749419019,0.04616971,139.61,139.58,0.05052283]
[1723749419220,3.62706971,139.61,139.58,0.05052283]
[1723749419521,0.04616971,139.61,139.58,0.05052283]
[1723749419726,0.04616971,139.61,139.58,3.63212283]
[1723749419910,0.04616971,139.61,139.58,0.05052283]
[1723749420417,31.05,139.6,139.48,38.95]
[1723749420611,1.3459,139.59,139.48,38.95]
[1723749420923,3.5828,139.54,139.49,3.5839]
[1723749421417,1.3459,139.59,139.48,38.95]
[1723749421622,0.05386546,139.53,139.5,0.05282259]
[1723749421916,1.2844,139.57,139.48,38.95]
[1723749422217,0.05396462,139.53,139.5,0.05097395]
[1723749422419,3.5832,139.52,139.5,0.05097395]
[1723749422619,0.05396462,139.53,139.5,0.05097395]
[1723749423117,3.5833,139.52,139.5,0.05097395]
[1723749423816,3.5834,139.51,139.5,0.05097395]
[1723749424119,0.05396462,139.53,139.5,0.05097395]
[1723749424920,3.63706462,139.53,139.5,0.05097395]
[1723749425420,0.05396462,139.53,139.5,0.05097395]
[1723749425622,31.10396462,139.53,139.38,31.05]
[1723749425814,3.5847,139.47,139.42,3.5857]
[1723749426010,7.92,139.56,139.39,7.92]
[1723749426011,31.05,139.5,139.39,7.92]
[1723749426225,1.2957,139.49,139.39,7.92]
[1723749426917,0.04595811,139.45,139.43,0.04462395]
[1723749429323,3.5852,139.44,139.43,0.04462395]
[1723749430224,0.04595811,139.45,139.35,31.05]
[1723749430417,31.05,139.45,139.34,7.92]
[1723749430824,3.5862,139.41,139.35,3.5874]
[1723749431020,31.05,139.43,139.35,3.5874]
[1723749431421,0.05140859,139.4,139.33,32.3282]
[1723749431622,0.05140859,139.4,139.36,31.05]
[1723749431824,0.05140859,139.4,139.39,3.5865]
[1723749432023,0.05140859,139.4,139.33,32.3282]
[1723749432423,0.05140859,139.4,139.32,1.2856]
[1723749432931,0.05140859,139.4,139.34,3.5876]
[1723749433126,0.05140859,139.4,139.32,1.2856]
[1723749433329,0.05140859,139.4,139.33,31.05]
[1723749433827,0.05140859,139.4,139.31,31.05]
[1723749434028,1.3358,139.41,139.35,3.5875]
[1723749434029,3.5866,139.39,139.35,3.5875]
[1723749434229,0.04725005,139.37,139.31,31.05]
[1723749434421,0.04725005,139.37,139.29,1.2399]